[Event "*** Titled Tuesday Blitz"]
[Site "Chess.com"]
[Date "2021.04.27"]
[Round "9"]
[White "northridgehawk"]
[Black "GameOverBro"]
[Result "0-1"]
[WhiteElo "2360"]
[BlackElo "2524"]
[TimeControl "180+1"]
[EndTime "11:44:39 PDT"]
[Termination "GameOverBro won by checkmate"]

1. e4 {[%clk 0:03:00.9]} 1... d6 {[%clk 0:02:58.1]} 2. d4 {[%clk 0:02:59.9]}
2... Nf6 {[%clk 0:02:58.6]} 3. Nc3 {[%clk 0:02:52.8]} 3... e5 {[%clk 0:02:58.9]}
4. Nge2 {[%clk 0:02:50.3]} 4... c6 {[%clk 0:02:58.3]} 5. f3 {[%clk 0:02:47.9]}
5... h5 {[%clk 0:02:56.9]} 6. Be3 {[%clk 0:02:46.9]} 6... b5 {[%clk 0:02:56]} 7.
Qd2 {[%clk 0:02:45.8]} 7... Nbd7 {[%clk 0:02:54.5]} 8. h4 {[%clk 0:02:42.4]}
8... a5 {[%clk 0:02:53.3]} 9. g3 {[%clk 0:02:37.4]} 9... a4 {[%clk 0:02:52.4]}
10. Nd1 {[%clk 0:02:36.6]} 10... Bb7 {[%clk 0:02:48.5]} 11. Nf2 {[%clk
0:02:36.2]} 11... d5 {[%clk 0:02:47.8]} 12. Bg2 {[%clk 0:02:31.8]} 12... dxe4
{[%clk 0:02:46.1]} 13. fxe4 {[%clk 0:02:30.5]} 13... exd4 {[%clk 0:02:44.4]} 14.
Nxd4 {[%clk 0:02:28.8]} 14... Ne5 {[%clk 0:02:42.9]} 15. O-O-O {[%clk
0:02:20.7]} 15... Nc4 {[%clk 0:02:35]} 16. Qe2 {[%clk 0:02:20.6]} 16... Qb6
{[%clk 0:02:20.8]} 17. Nf5 {[%clk 0:02:17.1]} 17... Nxe3 {[%clk 0:02:18.9]} 18.
Nxe3 {[%clk 0:02:18]} 18... Bc5 {[%clk 0:02:16.1]} 19. Rhe1 {[%clk 0:02:07.3]}
19... a3 {[%clk 0:02:15.6]} 20. b3 {[%clk 0:02:06.5]} 20... Bb4 {[%clk
0:02:13.1]} 21. Nf5 {[%clk 0:02:05.7]} 21... Bxe1 {[%clk 0:01:52.9]} 22. Nd6+
{[%clk 0:02:04.5]} 22... Kf8 {[%clk 0:01:50.1]} 23. Qxe1 {[%clk 0:02:05.4]}
23... Rd8 {[%clk 0:01:43.2]} 24. e5 {[%clk 0:02:05.1]} 24... Nd5 {[%clk
0:01:21.9]} 25. Nfe4 {[%clk 0:02:02.4]} 25... Rh6 {[%clk 0:01:19.1]} 26. Rd3
{[%clk 0:01:57.1]} 26... Re6 {[%clk 0:01:08.7]} 27. Rf3 {[%clk 0:01:55.9]} 27...
f6 {[%clk 0:01:05.6]} 28. Ng5 {[%clk 0:01:36.6]} 28... Rdxd6 {[%clk 0:00:57.7]}
29. Nxe6+ {[%clk 0:01:31.5]} 29... Rxe6 {[%clk 0:00:58.6]} 30. Bh3 {[%clk
0:01:31.3]} 30... Re7 {[%clk 0:00:41.8]} 31. Qd2 {[%clk 0:00:57.7]} 31... Qg1+
{[%clk 0:00:37]} 32. Rf1 {[%clk 0:00:56.8]} 32... Qe3 {[%clk 0:00:35.4]} 33.
exf6 {[%clk 0:00:55.6]} 33... gxf6 {[%clk 0:00:28]} 34. Rf5 {[%clk 0:00:48.3]}
34... Qe1+ {[%clk 0:00:20.5]} 35. Qxe1 {[%clk 0:00:46.6]} 35... Rxe1+ {[%clk
0:00:19.8]} 36. Kd2 {[%clk 0:00:47.5]} 36... Rh1 {[%clk 0:00:16]} 37. Bg2 {[%clk
0:00:44.5]} 37... Rh2 {[%clk 0:00:16]} 38. Rf2 {[%clk 0:00:44.2]} 38... b4
{[%clk 0:00:13.6]} 39. Ke2 {[%clk 0:00:42.4]} 39... Nc3+ {[%clk 0:00:13.8]} 40.
Kf1 {[%clk 0:00:40.9]} 40... Nxa2 {[%clk 0:00:12.4]} 41. Kg1 {[%clk 0:00:39.1]}
41... Rxg2+ {[%clk 0:00:12.7]} 42. Kxg2 {[%clk 0:00:38.9]} 42... c5+ {[%clk
0:00:12.5]} 43. Kh3 {[%clk 0:00:37.3]} 43... Nc3 {[%clk 0:00:13.4]} 44. Rf1
{[%clk 0:00:37]} 44... Kg7 {[%clk 0:00:11.9]} 45. g4 {[%clk 0:00:35.7]} 45...
hxg4+ {[%clk 0:00:11.2]} 46. Kxg4 {[%clk 0:00:36.6]} 46... Be4 {[%clk
0:00:11.6]} 47. Rc1 {[%clk 0:00:26.2]} 47... a2 {[%clk 0:00:11.3]} 48. Ra1
{[%clk 0:00:25.5]} 48... Bxc2 {[%clk 0:00:11.2]} 49. Kf4 {[%clk 0:00:25.5]}
49... Bxb3 {[%clk 0:00:10.4]} 50. Ke3 {[%clk 0:00:24.1]} 50... Nd5+ {[%clk
0:00:07.7]} 51. Kd3 {[%clk 0:00:23.9]} 51... Nf4+ {[%clk 0:00:06.4]} 52. Ke4
{[%clk 0:00:22.5]} 52... Ng2 {[%clk 0:00:05.6]} 53. h5 {[%clk 0:00:21.1]} 53...
Kh6 {[%clk 0:00:05.9]} 54. Kf5 {[%clk 0:00:20.7]} 54... Ne3+ {[%clk 0:00:05.5]}
55. Kxf6 {[%clk 0:00:20.5]} 55... Nc2 {[%clk 0:00:06.4]} 56. Rg1 {[%clk
0:00:20.1]} 56... a1=Q+ {[%clk 0:00:05.9]} 57. Rxa1 {[%clk 0:00:17.5]} 57...
Nxa1 {[%clk 0:00:06.8]} 58. Kf5 {[%clk 0:00:18.2]} 58... c4 {[%clk 0:00:06.8]}
59. Ke5 {[%clk 0:00:19.1]} 59... c3 {[%clk 0:00:07.7]} 60. Kd4 {[%clk
0:00:19.9]} 60... Kxh5 {[%clk 0:00:07.2]} 61. Kd3 {[%clk 0:00:20.8]} 61... Kg4
{[%clk 0:00:07.2]} 62. Ke3 {[%clk 0:00:21]} 62... Kf5 {[%clk 0:00:07.5]} 63. Ke2
{[%clk 0:00:21]} 63... Ke4 {[%clk 0:00:07.7]} 64. Ke1 {[%clk 0:00:21.2]} 64...
Kd3 {[%clk 0:00:07.8]} 65. Kf2 {[%clk 0:00:20.6]} 65... Bc4 {[%clk 0:00:08.1]}
66. Ke1 {[%clk 0:00:21.5]} 66... b3 {[%clk 0:00:08.6]} 67. Kd1 {[%clk
0:00:22.2]} 67... b2 {[%clk 0:00:08.4]} 68. Ke1 {[%clk 0:00:21.7]} 68... c2
{[%clk 0:00:08.5]} 69. Kf2 {[%clk 0:00:22.6]} 69... c1=Q {[%clk 0:00:07.5]} 70.
Kg3 {[%clk 0:00:23.5]} 70... Qf1 {[%clk 0:00:06.8]} 71. Kh2 {[%clk 0:00:24.4]}
71... b1=Q {[%clk 0:00:06.3]} 72. Kg3 {[%clk 0:00:24.1]} 72... Qbe1+ {[%clk
0:00:06.6]} 73. Kg4 {[%clk 0:00:24.1]} 73... Qe4+ {[%clk 0:00:05.6]} 74. Kg5
{[%clk 0:00:24]} 74... Qff5+ {[%clk 0:00:05.5]} 75. Kh6 {[%clk 0:00:24.9]} 75...
Qee6+ {[%clk 0:00:05.3]} 76. Kg7 {[%clk 0:00:24.9]} 76... Qff7+ {[%clk
0:00:05.4]} 77. Kh8 {[%clk 0:00:25.4]} 77... Qh5+ {[%clk 0:00:04.1]} 78. Kg7
{[%clk 0:00:24.5]} 78... Qhg4+ {[%clk 0:00:04.2]} 79. Kf8 {[%clk 0:00:25.4]}
79... Qgg8# {[%clk 0:00:03.7]} 0-1

[Event "*** Titled Tuesday Blitz"]
[Site "Chess.com"]
[Date "2021.04.27"]
[Round "9"]
[White "fabianvivasz"]
[Black "TheKingOfTheForest"]
[Result "0-1"]
[WhiteElo "2352"]
[BlackElo "2263"]
[TimeControl "180+1"]
[EndTime "11:44:40 PDT"]
[Termination "TheKingOfTheForest won on time"]

1. c4 {[%clk 0:03:00.9]} 1... f5 {[%clk 0:02:56.3]} 2. g3 {[%clk 0:02:57.3]}
2... Nf6 {[%clk 0:02:55.7]} 3. Bg2 {[%clk 0:02:57.6]} 3... d6 {[%clk 0:02:56.2]}
4. Nc3 {[%clk 0:02:46]} 4... e5 {[%clk 0:02:56.1]} 5. e3 {[%clk 0:02:34.3]} 5...
g6 {[%clk 0:02:52.4]} 6. Nge2 {[%clk 0:02:33.8]} 6... Bg7 {[%clk 0:02:52.1]} 7.
O-O {[%clk 0:02:31.5]} 7... O-O {[%clk 0:02:51.8]} 8. Rb1 {[%clk 0:02:29.6]}
8... a5 {[%clk 0:02:51.4]} 9. a3 {[%clk 0:02:23.8]} 9... Nc6 {[%clk 0:02:50.9]}
10. b4 {[%clk 0:02:23]} 10... axb4 {[%clk 0:02:50.5]} 11. axb4 {[%clk
0:02:23.9]} 11... e4 {[%clk 0:02:46.1]} 12. d3 {[%clk 0:01:06.7]} 12... Qe7
{[%clk 0:02:23]} 13. Nf4 {[%clk 0:01:03.7]} 13... Kh8 {[%clk 0:02:09.7]} 14.
Ncd5 {[%clk 0:00:51.6]} 14... Qf7 {[%clk 0:01:34.7]} 15. Nxf6 {[%clk 0:00:47.9]}
15... Bxf6 {[%clk 0:01:29.7]} 16. dxe4 {[%clk 0:00:43.6]} 16... Qxc4 {[%clk
0:01:24.1]} 17. Nd5 {[%clk 0:00:35.6]} 17... Bg7 {[%clk 0:00:53.7]} 18. Nxc7
{[%clk 0:00:31.7]} 18... Ra2 {[%clk 0:00:48.4]} 19. Qxd6 {[%clk 0:00:23.9]}
19... fxe4 {[%clk 0:00:40]} 20. Qd5 {[%clk 0:00:07.5]} 20... Qxd5 {[%clk
0:00:25.7]} 21. Nxd5 {[%clk 0:00:08.4]} 21... Bf5 {[%clk 0:00:20.7]} 22. b5
{[%clk 0:00:07.1]} 22... Ne5 {[%clk 0:00:20.7]} 23. Bb2 {[%clk 0:00:04.9]} 23...
Nf3+ {[%clk 0:00:20.3]} 24. Bxf3 {[%clk 0:00:04.8]} 24... Rxb2 {[%clk
0:00:18.1]} 25. Rxb2 {[%clk 0:00:04.2]} 25... Bxb2 {[%clk 0:00:19]} 26. Be2
{[%clk 0:00:04.5]} 26... Be5 {[%clk 0:00:17.3]} 27. Rd1 {[%clk 0:00:04.1]} 27...
Rd8 {[%clk 0:00:16.4]} 28. Nc3 {[%clk 0:00:03.4]} 28... Rc8 {[%clk 0:00:15.4]}
29. Na4 {[%clk 0:00:03.8]} 29... Kg7 {[%clk 0:00:14.3]} 30. Kg2 {[%clk
0:00:03.7]} 30... h5 {[%clk 0:00:14.3]} 31. Bf1 {[%clk 0:00:03.4]} 31... Kf6
{[%clk 0:00:14.7]} 32. Nb6 {[%clk 0:00:02.5]} 32... Rc2 {[%clk 0:00:12.9]} 33.
Nd7+ {[%clk 0:00:02.7]} 33... Ke6 {[%clk 0:00:10.9]} 34. Nxe5 {[%clk 0:00:02.7]}
34... Kxe5 {[%clk 0:00:11.8]} 35. Rd8 {[%clk 0:00:02.9]} 35... Rb2 {[%clk
0:00:11.2]} 36. h4 {[%clk 0:00:02.9]} 36... Rb1 {[%clk 0:00:10]} 37. Be2 {[%clk
0:00:02.5]} 37... Rb2 {[%clk 0:00:09.8]} 38. Bf1 {[%clk 0:00:02.7]} 38... Be6
{[%clk 0:00:07.5]} 39. Rb8 {[%clk 0:00:03]} 39... Bd5 {[%clk 0:00:05.5]} 40.
Re8+ {[%clk 0:00:03.4]} 40... Kf6 {[%clk 0:00:05.8]} 41. Rd8 {[%clk 0:00:03.2]}
41... Be6 {[%clk 0:00:05.7]} 42. Rd6 {[%clk 0:00:03.6]} 42... Ke5 {[%clk
0:00:04.9]} 43. Rb6 {[%clk 0:00:04]} 43... Bg4 {[%clk 0:00:05.1]} 44. Rxb7
{[%clk 0:00:03.8]} 44... Bf3+ {[%clk 0:00:06]} 45. Kg1 {[%clk 0:00:03.8]} 45...
Rb1 {[%clk 0:00:06.9]} 46. Re7+ {[%clk 0:00:01.3]} 46... Kf6 {[%clk 0:00:06.9]}
47. Rc7 {[%clk 0:00:01.1]} 47... Be2 {[%clk 0:00:07]} 48. Rc6+ {[%clk
0:00:01.5]} 48... Ke5 {[%clk 0:00:06.9]} 49. Rc5+ {[%clk 0:00:01.6]} 49... Kd6
{[%clk 0:00:06.6]} 50. Rc6+ {[%clk 0:00:01.6]} 50... Kd7 {[%clk 0:00:07]} 51.
Rxg6 {[%clk 0:00:01.9]} 51... Bxf1 {[%clk 0:00:06.5]} 52. Kh2 {[%clk 0:00:02.1]}
52... Be2 {[%clk 0:00:06.6]} 53. g4 {[%clk 0:00:02.4]} 53... Bf3 {[%clk
0:00:05.8]} 54. Kg3 {[%clk 0:00:02.8]} 54... hxg4 {[%clk 0:00:05.5]} 55. h5
{[%clk 0:00:03]} 55... Rxb5 {[%clk 0:00:05.6]} 56. h6 {[%clk 0:00:03]} 56... Rh5
{[%clk 0:00:06.1]} 57. Kf4 {[%clk 0:00:03.4]} 57... Rh2 {[%clk 0:00:05.4]} 58.
Rg7+ {[%clk 0:00:03.5]} 58... Ke6 {[%clk 0:00:05.3]} 59. h7 {[%clk 0:00:03.9]}
59... Kf6 {[%clk 0:00:05.7]} 60. Ra7 {[%clk 0:00:03.8]} 60... Rh5 {[%clk
0:00:05.1]} 61. Rb7 {[%clk 0:00:03]} 61... Rh3 {[%clk 0:00:04.7]} 62. Ra7 {[%clk
0:00:02.3]} 62... Rh2 {[%clk 0:00:04.5]} 0-1

[Event "*** Titled Tuesday Blitz"]
[Site "Chess.com"]
[Date "2021.04.27"]
[Round "9"]
[White "JiiHart"]
[Black "adriangschnitzer"]
[Result "0-1"]
[WhiteElo "2071"]
[BlackElo "2511"]
[TimeControl "180+1"]
[EndTime "11:44:41 PDT"]
[Termination "adriangschnitzer won on time"]

1. e4 {[%clk 0:02:27.8]} 1... c5 {[%clk 0:02:59.5]} 2. Nf3 {[%clk 0:02:26.6]}
2... Nc6 {[%clk 0:02:55]} 3. d4 {[%clk 0:02:26.9]} 3... cxd4 {[%clk 0:02:55.9]}
4. Nxd4 {[%clk 0:02:27.5]} 4... g6 {[%clk 0:02:56.5]} 5. c4 {[%clk 0:02:26.9]}
5... Bg7 {[%clk 0:02:56.6]} 6. Be3 {[%clk 0:02:27.5]} 6... Nf6 {[%clk
0:02:56.5]} 7. Nc3 {[%clk 0:02:27.8]} 7... Ng4 {[%clk 0:02:56.1]} 8. Be2 {[%clk
0:02:28.6]} 8... Nxe3 {[%clk 0:02:54.3]} 9. fxe3 {[%clk 0:02:26.3]} 9... O-O
{[%clk 0:02:52.5]} 10. O-O {[%clk 0:02:25.8]} 10... d6 {[%clk 0:02:45.8]} 11.
Nd5 {[%clk 0:02:23.2]} 11... e6 {[%clk 0:02:35.9]} 12. Nc3 {[%clk 0:02:22.8]}
12... Qg5 {[%clk 0:02:33.7]} 13. Rf3 {[%clk 0:02:17.7]} 13... Qc5 {[%clk
0:02:23.8]} 14. Ncb5 {[%clk 0:02:08.4]} 14... Ne5 {[%clk 0:02:17.5]} 15. Rh3
{[%clk 0:01:58.6]} 15... a6 {[%clk 0:02:10.9]} 16. Nb3 {[%clk 0:01:54.9]} 16...
Qc6 {[%clk 0:02:03.4]} 17. Nxd6 {[%clk 0:01:54.6]} 17... Rd8 {[%clk 0:02:00.8]}
18. c5 {[%clk 0:01:53.6]} 18... b6 {[%clk 0:01:53.8]} 19. Qc2 {[%clk 0:01:16.9]}
19... bxc5 {[%clk 0:01:48.5]} 20. Nxc8 {[%clk 0:01:15.4]} 20... Raxc8 {[%clk
0:01:47]} 21. Rc1 {[%clk 0:01:15.2]} 21... h5 {[%clk 0:01:34]} 22. Nd2 {[%clk
0:01:06]} 22... Rxd2 {[%clk 0:01:24.7]} 23. Qxd2 {[%clk 0:01:04.2]} 23... Qxe4
{[%clk 0:01:25.2]} 24. Bf3 {[%clk 0:00:45.8]} 24... Qa4 {[%clk 0:01:20.6]} 25.
b3 {[%clk 0:00:42.8]} 25... Qa3 {[%clk 0:01:17.4]} 26. Be4 {[%clk 0:00:34.3]}
26... Ng4 {[%clk 0:01:00.5]} 27. Rc4 {[%clk 0:00:25.7]} 27... Qb2 {[%clk
0:00:32.2]} 28. Qxb2 {[%clk 0:00:24]} 28... Bxb2 {[%clk 0:00:33.1]} 29. Kf1
{[%clk 0:00:20.2]} 29... a5 {[%clk 0:00:25.2]} 30. Ke2 {[%clk 0:00:20]} 30...
Ba3 {[%clk 0:00:25]} 31. Bf3 {[%clk 0:00:19.4]} 31... Ne5 {[%clk 0:00:23.9]} 32.
Rc2 {[%clk 0:00:16.1]} 32... Bb4 {[%clk 0:00:23.1]} 33. Be4 {[%clk 0:00:15.6]}
33... Ng4 {[%clk 0:00:21.9]} 34. Rh4 {[%clk 0:00:13.9]} 34... Nf6 {[%clk
0:00:20.4]} 35. Bd3 {[%clk 0:00:12.8]} 35... Kg7 {[%clk 0:00:19.7]} 36. Rhc4
{[%clk 0:00:12.6]} 36... Rd8 {[%clk 0:00:17.1]} 37. h3 {[%clk 0:00:12.1]} 37...
g5 {[%clk 0:00:15.6]} 38. g3 {[%clk 0:00:11.7]} 38... Nd5 {[%clk 0:00:14.8]} 39.
Rc1 {[%clk 0:00:09.4]} 39... f5 {[%clk 0:00:12.7]} 40. Rd1 {[%clk 0:00:09.3]}
40... Nb6 {[%clk 0:00:11.6]} 41. Rc2 {[%clk 0:00:07.4]} 41... Kf6 {[%clk
0:00:11.9]} 42. Bc4 {[%clk 0:00:07.2]} 42... Rxd1 {[%clk 0:00:05.6]} 43. Kxd1
{[%clk 0:00:08.1]} 43... Ke5 {[%clk 0:00:05.4]} 44. Ke2 {[%clk 0:00:08.2]} 44...
g4 {[%clk 0:00:03.6]} 45. Rc1 {[%clk 0:00:07.1]} 45... Nd5 {[%clk 0:00:02.3]}
46. Bxd5 {[%clk 0:00:06.7]} 46... exd5 {[%clk 0:00:03.2]} 47. hxg4 {[%clk
0:00:07.1]} 47... hxg4 {[%clk 0:00:02.9]} 48. Rh1 {[%clk 0:00:06.7]} 48... c4
{[%clk 0:00:02.9]} 49. bxc4 {[%clk 0:00:06.5]} 49... dxc4 {[%clk 0:00:03.8]} 50.
Rc1 {[%clk 0:00:06]} 50... Kd5 {[%clk 0:00:03.5]} 51. Rc2 {[%clk 0:00:05.3]}
51... c3 {[%clk 0:00:02.9]} 52. Kd3 {[%clk 0:00:04.9]} 52... Kc5 {[%clk
0:00:02.3]} 53. Rc1 {[%clk 0:00:04.9]} 53... Kd5 {[%clk 0:00:02.3]} 54. Rc2
{[%clk 0:00:05.1]} 54... Kc5 {[%clk 0:00:02.4]} 55. Rc1 {[%clk 0:00:05.4]} 55...
a4 {[%clk 0:00:02.6]} 56. Rc2 {[%clk 0:00:05.2]} 56... Kd5 {[%clk 0:00:02.6]}
57. Rxc3 {[%clk 0:00:04.3]} 57... Bxc3 {[%clk 0:00:02.5]} 58. Kxc3 {[%clk
0:00:04.7]} 58... Ke4 {[%clk 0:00:02.9]} 0-1

[Event "*** Titled Tuesday Blitz"]
[Site "Chess.com"]
[Date "2021.04.27"]
[Round "9"]
[White "ukchessbomber"]
[Black "TST2014"]
[Result "0-1"]
[WhiteElo "2525"]
[BlackElo "2673"]
[TimeControl "180+1"]
[EndTime "11:44:46 PDT"]
[Termination "TST2014 won on time"]

1. d4 {[%clk 0:03:00.9]} 1... Nf6 {[%clk 0:02:58.4]} 2. c4 {[%clk 0:03:00.9]}
2... c5 {[%clk 0:02:57.6]} 3. d5 {[%clk 0:03:01]} 3... b5 {[%clk 0:02:57.5]} 4.
cxb5 {[%clk 0:03:01.9]} 4... a6 {[%clk 0:02:57.6]} 5. bxa6 {[%clk 0:03:02.8]}
5... Bxa6 {[%clk 0:02:58.1]} 6. Nc3 {[%clk 0:03:03]} 6... g6 {[%clk 0:02:58.1]}
7. e4 {[%clk 0:03:03.2]} 7... Bxf1 {[%clk 0:02:58.1]} 8. Kxf1 {[%clk 0:03:04.1]}
8... d6 {[%clk 0:02:58.5]} 9. g3 {[%clk 0:03:02.5]} 9... Bg7 {[%clk 0:02:57.9]}
10. Nf3 {[%clk 0:03:02.1]} 10... O-O {[%clk 0:02:56.3]} 11. Kg2 {[%clk
0:03:02.4]} 11... Nbd7 {[%clk 0:02:55.9]} 12. a4 {[%clk 0:03:01.9]} 12... Qa5
{[%clk 0:02:55]} 13. Ra3 {[%clk 0:03:01.6]} 13... Rfb8 {[%clk 0:02:52.3]} 14.
Qc2 {[%clk 0:02:51.6]} 14... Ne8 {[%clk 0:02:41.3]} 15. Nd2 {[%clk 0:02:22.5]}
15... Qa6 {[%clk 0:02:33.9]} 16. Nb5 {[%clk 0:02:19]} 16... Rb7 {[%clk
0:02:20.7]} 17. Nc4 {[%clk 0:02:11.8]} 17... Nc7 {[%clk 0:02:18.4]} 18. Nxc7
{[%clk 0:02:02]} 18... Rxc7 {[%clk 0:02:19.3]} 19. h4 {[%clk 0:02:01.9]} 19...
h5 {[%clk 0:02:18.6]} 20. Bg5 {[%clk 0:01:42.9]} 20... Ne5 {[%clk 0:02:09.9]}
21. Ne3 {[%clk 0:01:09.1]} 21... Rb7 {[%clk 0:01:58.6]} 22. Rb1 {[%clk
0:00:51.9]} 22... Rab8 {[%clk 0:01:56.2]} 23. a5 {[%clk 0:00:39.2]} 23... Rb4
{[%clk 0:01:21.7]} 24. Nd1 {[%clk 0:00:28.6]} 24... Nc4 {[%clk 0:01:16.8]} 25.
Ra2 {[%clk 0:00:27.2]} 25... Nxa5 {[%clk 0:01:06.9]} 26. Bd2 {[%clk 0:00:25.9]}
26... Qc4 {[%clk 0:00:53.6]} 27. Qxc4 {[%clk 0:00:21.7]} 27... Nxc4 {[%clk
0:00:54.4]} 28. Bxb4 {[%clk 0:00:21.8]} 28... Rxb4 {[%clk 0:00:52.2]} 29. b3
{[%clk 0:00:17.9]} 29... Nb6 {[%clk 0:00:47.7]} 30. f3 {[%clk 0:00:16.5]} 30...
c4 {[%clk 0:00:47.6]} 31. Ra3 {[%clk 0:00:13.9]} 31... c3 {[%clk 0:00:47.3]} 32.
Rc1 {[%clk 0:00:13.3]} 32... Rd4 {[%clk 0:00:31.4]} 33. Nxc3 {[%clk 0:00:12.5]}
33... Rd2+ {[%clk 0:00:31.6]} 34. Kh3 {[%clk 0:00:12.1]} 34... Nd7 {[%clk
0:00:31.6]} 35. Nb1 {[%clk 0:00:07.6]} 35... Rf2 {[%clk 0:00:30.6]} 36. b4
{[%clk 0:00:08.1]} 36... Ne5 {[%clk 0:00:29.1]} 37. b5 {[%clk 0:00:05.1]} 37...
Nxf3 {[%clk 0:00:27.3]} 38. Rxf3 {[%clk 0:00:05.3]} 38... Rxf3 {[%clk
0:00:27.6]} 39. Nd2 {[%clk 0:00:06.2]} 39... Rd3 {[%clk 0:00:19.7]} 40. b6
{[%clk 0:00:04.4]} 40... Be5 {[%clk 0:00:19.9]} 41. Nf1 {[%clk 0:00:03.4]} 41...
Rb3 {[%clk 0:00:19.7]} 42. Rc8+ {[%clk 0:00:03.8]} 42... Kg7 {[%clk 0:00:19.5]}
43. Rb8 {[%clk 0:00:04.7]} 43... f5 {[%clk 0:00:17.9]} 44. b7 {[%clk 0:00:03.5]}
44... f4 {[%clk 0:00:17.9]} 45. Kg2 {[%clk 0:00:04.4]} 45... f3+ {[%clk
0:00:17.3]} 46. Kh3 {[%clk 0:00:03.6]} 46... Rb2 {[%clk 0:00:12.7]} 47. g4
{[%clk 0:00:03.3]} 47... hxg4+ {[%clk 0:00:12]} 48. Kxg4 {[%clk 0:00:04.2]}
48... f2 {[%clk 0:00:12.3]} 49. Kh3 {[%clk 0:00:03.9]} 49... Bd4 {[%clk
0:00:12.7]} 50. Kg2 {[%clk 0:00:04.3]} 50... Ba7 {[%clk 0:00:12.6]} 51. Re8
{[%clk 0:00:01.5]} 51... Rxb7 {[%clk 0:00:12.9]} 52. h5 {[%clk 0:00:01.3]} 52...
gxh5 {[%clk 0:00:12.8]} 53. Ra8 {[%clk 0:00:02.2]} 53... Bc5 {[%clk 0:00:12.2]}
54. Ra3 {[%clk 0:00:03.1]} 54... Rb4 {[%clk 0:00:11.2]} 55. Rg3+ {[%clk
0:00:02.6]} 55... Kh6 {[%clk 0:00:11.5]} 56. Nd2 {[%clk 0:00:01.3]} 56... Rb2
{[%clk 0:00:11]} 57. Nf1 {[%clk 0:00:01.5]} 57... Re2 {[%clk 0:00:11]} 58. Rf3
{[%clk 0:00:02]} 58... Rxe4 {[%clk 0:00:11]} 59. Rf8 {[%clk 0:00:02.9]} 59...
Rg4+ {[%clk 0:00:11.1]} 60. Kf3 {[%clk 0:00:03.5]} 60... Rg1 {[%clk 0:00:11.3]}
61. Ke2 {[%clk 0:00:04.2]} 61... Rg5 {[%clk 0:00:11.2]} 62. Rh8+ {[%clk
0:00:03.9]} 62... Kg7 {[%clk 0:00:11.3]} 63. Re8 {[%clk 0:00:04.4]} 63... Re5+
{[%clk 0:00:11.8]} 64. Kf3 {[%clk 0:00:04.5]} 64... Kf7 {[%clk 0:00:12.3]} 65.
Rh8 {[%clk 0:00:03.7]} 65... Rxd5 {[%clk 0:00:12.9]} 66. Rh7+ {[%clk 0:00:04.3]}
66... Kf6 {[%clk 0:00:12.4]} 67. Ng3 {[%clk 0:00:04.4]} 67... Rf5+ {[%clk
0:00:11.8]} 68. Kg2 {[%clk 0:00:03.8]} 68... Rg5 {[%clk 0:00:11.9]} 0-1

[Event "*** Titled Tuesday Blitz"]
[Site "Chess.com"]
[Date "2021.04.27"]
[Round "9"]
[White "Oleksandr_Bortnyk"]
[Black "adnan_nn"]
[Result "1-0"]
[WhiteElo "2962"]
[BlackElo "2708"]
[TimeControl "180+1"]
[EndTime "11:44:47 PDT"]
[Termination "Oleksandr_Bortnyk won on time"]

1. e4 {[%clk 0:03:00.9]} 1... c5 {[%clk 0:02:59.1]} 2. Nf3 {[%clk 0:02:59.8]}
2... Nf6 {[%clk 0:02:58.7]} 3. e5 {[%clk 0:02:58.3]} 3... Nd5 {[%clk 0:02:58.3]}
4. c3 {[%clk 0:02:59.1]} 4... Nc6 {[%clk 0:02:56.8]} 5. d4 {[%clk 0:03:00]} 5...
cxd4 {[%clk 0:02:55.7]} 6. cxd4 {[%clk 0:03:00.9]} 6... d6 {[%clk 0:02:55.3]} 7.
Bc4 {[%clk 0:02:58.5]} 7... dxe5 {[%clk 0:02:55.4]} 8. Nxe5 {[%clk 0:02:55.9]}
8... e6 {[%clk 0:02:55.5]} 9. O-O {[%clk 0:02:49.7]} 9... Bd6 {[%clk 0:02:55.1]}
10. Nf3 {[%clk 0:02:50]} 10... O-O {[%clk 0:02:53.3]} 11. Qe2 {[%clk 0:02:47.8]}
11... b6 {[%clk 0:02:49.6]} 12. Nbd2 {[%clk 0:02:39.4]} 12... Bb7 {[%clk
0:02:41.8]} 13. Ne4 {[%clk 0:02:39.2]} 13... Be7 {[%clk 0:02:34.9]} 14. a3
{[%clk 0:02:31.3]} 14... Rc8 {[%clk 0:02:31.4]} 15. b4 {[%clk 0:02:30.5]} 15...
Nf6 {[%clk 0:02:23.7]} 16. Bd3 {[%clk 0:02:00.2]} 16... Nxe4 {[%clk 0:02:08.3]}
17. Bxe4 {[%clk 0:01:45.8]} 17... Bf6 {[%clk 0:02:01.3]} 18. Bb2 {[%clk
0:01:34.2]} 18... Qd7 {[%clk 0:01:57.6]} 19. Rad1 {[%clk 0:01:27.2]} 19... Ne7
{[%clk 0:01:52.8]} 20. Ne5 {[%clk 0:01:16.2]} 20... Bxe5 {[%clk 0:01:35.8]} 21.
dxe5 {[%clk 0:01:17.1]} 21... Nd5 {[%clk 0:01:34.8]} 22. Qh5 {[%clk 0:00:56]}
22... h6 {[%clk 0:01:22.7]} 23. Rd3 {[%clk 0:00:51.1]} 23... Ba6 {[%clk
0:01:12.4]} 24. Rxd5 {[%clk 0:00:10.5]} 24... exd5 {[%clk 0:00:58.1]} 25. Rd1
{[%clk 0:00:11.1]} 25... Qb5 {[%clk 0:00:46.2]} 26. Bd3 {[%clk 0:00:05.5]} 26...
Qxd3 {[%clk 0:00:41.2]} 27. Rxd3 {[%clk 0:00:05.5]} 27... Bxd3 {[%clk
0:00:42.1]} 28. h3 {[%clk 0:00:02.9]} 28... Rc2 {[%clk 0:00:37.2]} 29. Bd4
{[%clk 0:00:03.1]} 29... Rc4 {[%clk 0:00:26.8]} 30. Qg4 {[%clk 0:00:03.3]} 30...
Re8 {[%clk 0:00:19.9]} 31. Qd7 {[%clk 0:00:03.1]} 31... Rf8 {[%clk 0:00:15.3]}
32. Qxd5 {[%clk 0:00:03.2]} 32... Rc1+ {[%clk 0:00:12.8]} 33. Kh2 {[%clk
0:00:03.4]} 33... Bf5 {[%clk 0:00:13.5]} 34. Be3 {[%clk 0:00:02.9]} 34... Be6
{[%clk 0:00:12.5]} 35. Qf3 {[%clk 0:00:02.7]} 35... Ra1 {[%clk 0:00:10.1]} 36.
Qg3 {[%clk 0:00:03.6]} 36... Rxa3 {[%clk 0:00:08.2]} 37. Qh4 {[%clk 0:00:03]}
37... Re8 {[%clk 0:00:06.1]} 38. Qd4 {[%clk 0:00:03.2]} 38... Rb3 {[%clk
0:00:04.9]} 39. Qd6 {[%clk 0:00:03.2]} 39... Rc8 {[%clk 0:00:02.2]} 40. Qe7
{[%clk 0:00:03.4]} 40... Rc2 {[%clk 0:00:02.2]} 41. Qxa7 {[%clk 0:00:03.3]}
41... Rbb2 {[%clk 0:00:02.5]} 42. Qa8+ {[%clk 0:00:03.6]} 42... Kh7 {[%clk
0:00:01.8]} 43. Qe4+ {[%clk 0:00:03.7]} 43... g6 {[%clk 0:00:01.5]} 44. Qd4
{[%clk 0:00:04.6]} 44... Rb3 {[%clk 0:00:01.2]} 45. Qxb6 {[%clk 0:00:04.5]}
45... Rcb2 {[%clk 0:00:02.1]} 46. Qd4 {[%clk 0:00:04.5]} 46... Rxb4 {[%clk
0:00:02.3]} 47. Qd8 {[%clk 0:00:05.2]} 47... Kg7 {[%clk 0:00:03.2]} 48. Qf6+
{[%clk 0:00:05.5]} 48... Kh7 {[%clk 0:00:04.1]} 49. Qe7 {[%clk 0:00:05.9]} 49...
Rb7 {[%clk 0:00:05]} 50. Qh4 {[%clk 0:00:05.4]} 50... R2b3 {[%clk 0:00:05.5]}
51. Qxh6+ {[%clk 0:00:05.7]} 51... Kg8 {[%clk 0:00:05.3]} 52. Bg5 {[%clk
0:00:06.6]} 52... f6 {[%clk 0:00:03]} 53. Qxg6+ {[%clk 0:00:06.6]} 53... Kf8
{[%clk 0:00:03]} 54. Qxf6+ {[%clk 0:00:06.8]} 54... Bf7 {[%clk 0:00:03.5]} 55.
e6 {[%clk 0:00:07.1]} 55... R3b6 {[%clk 0:00:04.1]} 56. Qh8+ {[%clk 0:00:06.7]}
56... Bg8 {[%clk 0:00:03.1]} 57. Bh6+ {[%clk 0:00:07.2]} 57... Ke7 {[%clk
0:00:03.1]} 58. Qxg8 {[%clk 0:00:07.7]} 58... Rxe6 {[%clk 0:00:02.3]} 59. Bf8+
{[%clk 0:00:08.2]} 59... Kd7 {[%clk 0:00:02.4]} 60. Qf7+ {[%clk 0:00:08.5]}
60... Re7 {[%clk 0:00:02.7]} 61. Qxe7+ {[%clk 0:00:08.7]} 61... Kc6 {[%clk
0:00:03.1]} 62. Qxb7+ {[%clk 0:00:07.3]} 1-0